lending/lending_fUSD_20250210
["ID","MTS","AMOUNT","RATE_DAILY","PERIOD"]
[352529880,1739153436928,-150.0,9.721e-05,2]
[352529881,1739153436938,-150.0,9.727e-05,2]
[352529882,1739153436947,-150.0,9.735e-05,2]
[352529883,1739153436956,-150.0,9.75e-05,2]
[352529884,1739153436965,-150.0,9.758e-05,2]
[352529885,1739153436974,-150.0,9.765e-05,2]
[352529886,1739153436984,-150.0,9.779e-05,2]
[352529887,1739153436993,-150.0,9.788e-05,2]
[352529888,1739153437002,-500.0,9.794e-05,2]
[352529889,1739153437011,-500.0,9.794e-05,2]
[352529890,1739153437020,-459.30889659,9.794e-05,2]
[352529891,1739153437029,-500.0,9.794e-05,2]
[352529892,1739153437039,-500.0,9.794e-05,2]
[352529893,1739153437048,-830.37,9.794e-05,2]
[352529894,1739153437057,-525.78,9.794e-05,2]
[352529895,1739153437066,-600.29,9.794e-05,2]
[352529896,1739153437076,-573.78129897,9.794e-05,2]
[352529897,1739153437085,-500.0,9.794e-05,2]
[352529898,1739153437094,-500.0,9.794e-05,2]
[352529899,1739153437104,-508.5,9.794e-05,2]
[352529900,1739153437113,-500.0,9.794e-05,2]
[352529901,1739153437122,-500.0,9.794e-05,2]
[352529902,1739153437131,-500.0,9.794e-05,2]
[352529903,1739153437140,-426.29186685,9.794e-05,2]
[352529904,1739153437150,-500.0,9.794e-05,2]
[352529905,1739153437158,-500.0,9.794e-05,2]
[352529906,1739153437167,-500.0,9.794e-05,2]
[352529907,1739153437177,-500.0,9.794e-05,2]
[352529908,1739153437186,-500.0,9.794e-05,2]
[352529909,1739153437195,-500.0,9.794e-05,2]
[352529910,1739153437205,-500.0,9.794e-05,2]
[352529911,1739153437214,-500.0,9.794e-05,2]
[352529912,1739153437223,-500.0,9.794e-05,2]
[352529913,1739153437232,-500.0,9.794e-05,2]
[352529914,1739153437241,-500.0,9.794e-05,2]
[352529915,1739153437251,-924.01,9.794e-05,2]
[352529916,1739153437260,-500.0,9.794e-05,2]
[352529917,1739153437269,-500.0,9.794e-05,2]
[352529918,1739153437278,-500.0,9.794e-05,2]
[352529919,1739153437287,-500.0,9.794e-05,2]
[352529920,1739153437296,-150.0,9.794e-05,2]
[352529921,1739153437306,-150.0,9.809e-05,2]
[352529922,1739153437317,-150.0,9.818e-05,2]
[352529924,1739153437326,-150.0,9.824e-05,2]
[352529927,1739153437336,-150.0,9.833e-05,2]
[352529928,1739153437345,-150.0,9.838e-05,2]
[352529929,1739153437354,-150.0,9.848e-05,2]
[352529930,1739153437363,-150.0,9.853e-05,2]
[352529931,1739153437372,-150.0,9.868e-05,2]
[352529932,1739153437381,-150.0,9.879e-05,2]
[352529933,1739153437390,-150.0,9.882e-05,2]
[352529934,1739153437398,-150.0,9.897e-05,2]
[352529935,1739153437408,-150.0,9.909e-05,2]
[352529936,1739153437417,-150.0,9.912e-05,2]
[352529937,1739153437427,-150.0,9.926e-05,2]
[352529938,1739153437436,-500.0,9.931e-05,2]
[352529939,1739153437445,-500.0,9.931e-05,2]
[352529940,1739153437454,-500.0,9.931e-05,2]
[352529941,1739153437464,-570.85033536,9.931e-05,2]
[352529942,1739153437473,-830.37,9.931e-05,2]
[352529943,1739153437482,-525.78,9.931e-05,2]
[352529944,1739153437491,-600.29,9.931e-05,2]
[352529945,1739153437500,-500.0,9.931e-05,2]
[352529946,1739153437509,-500.0,9.931e-05,2]
[352529947,1739153437518,-508.5,9.931e-05,2]
[352529948,1739153437528,-500.0,9.931e-05,2]
[352529949,1739153437537,-500.0,9.931e-05,2]
[352529950,1739153437546,-500.0,9.931e-05,2]
[352529951,1739153437555,-500.0,9.931e-05,2]
[352529952,1739153437565,-500.0,9.931e-05,2]
[352529953,1739153437575,-500.0,9.931e-05,2]
[352529954,1739153437584,-500.0,9.931e-05,2]
[352529955,1739153437594,-500.0,9.931e-05,2]
[352529956,1739153437604,-500.0,9.931e-05,2]
[352529957,1739153437613,-500.0,9.931e-05,2]
[352529958,1739153437623,-500.0,9.931e-05,2]
[352529959,1739153437631,-575.22819398,9.931e-05,2]
[352529960,1739153437641,-500.0,9.931e-05,2]
[352529961,1739153437650,-924.01,9.931e-05,2]
[352529962,1739153437659,-500.0,9.931e-05,2]
[352529963,1739153437670,-535.11098693,9.931e-05,2]
[352529964,1739153437680,-500.0,9.931e-05,2]
[352529965,1739153437690,-500.0,9.931e-05,2]
[352529966,1739153437699,-150.0,9.939e-05,2]
[352529967,1739153437709,-150.0,9.941e-05,2]
[352529968,1739153437718,-150.0,9.956e-05,2]
[352529969,1739153437727,-150.0,9.97e-05,2]
[352529970,1739153437736,-150.0,9.971e-05,2]
[352529971,1739153437746,-150.0,9.985e-05,2]
[352529972,1739153437756,-500.0,9.999e-05,2]
[352529973,1739153437767,-500.0,9.999e-05,2]
[352529974,1739153437777,-505.59963584,9.999e-05,2]
[352529975,1739153437786,-2255.0,0.0001,2]
[352529976,1739153437795,-1191585.98743567,0.0001,2]
[352530023,1739153438272,-500.0,9.52e-05,2]
[352530026,1739153438281,-500.0,9.657e-05,2]
[352530029,1739153438290,-500.0,9.794e-05,2]
[352530032,1739153438300,-500.0,9.931e-05,2]
[352530035,1739153438309,-1209.34039863,0.0001,2]
[352530173,1739153439687,-3112.29195996,0.0001,2]
[352530175,1739153439699,-321.0256511,0.0001,2]
[352530764,1739153445815,-500.0,8.835e-05,2]
[352530766,1739153445825,-500.0,8.835e-05,2]
[352530768,1739153445835,-500.0,8.835e-05,2]
[352530770,1739153445845,-500.0,8.835e-05,2]
[352530772,1739153445854,-507.20126206,8.835e-05,2]
[352530774,1739153445864,-526.70059006,8.835e-05,2]
[352530776,1739153445874,-518.99,8.835e-05,2]
[352530778,1739153445883,-500.0,8.972e-05,2]
[352530780,1739153445894,-516.60737786,8.972e-05,2]
[352530782,1739153445904,-193.17929907,8.972e-05,2]
[352530784,1739153445914,-518.99,8.972e-05,2]
[352530786,1739153445923,-500.0,9.109e-05,2]
[352530788,1739153445932,-518.99,9.109e-05,2]
[352530790,1739153445941,-500.0,9.246e-05,2]
[352530792,1739153445951,-380.22942055,9.383e-05,2]
[352531737,1739153500675,163.18,7.281e-05,2]
[352531738,1739153897919,166.0,0.0002,120]
[352531739,1739154109468,1830.9428428,0.0002,120]
[352531770,1739154631848,-1045.14,8.219e-05,2]
[352531771,1739154631858,-155.1313,8.699e-05,2]
[352531772,1739154631867,-1751.0846,8.699e-05,2]
[352531773,1739154631877,-306.49,8.738e-05,2]
[352531774,1739154631886,-300.0,8.82e-05,2]
[352531775,1739154631896,-10540.24,8.821e-05,2]
[352531776,1739154631905,-222.35279883,8.835e-05,2]
[352531777,1739154631915,-500.0,8.835e-05,2]
[352531778,1739154631924,-465.08604647,8.835e-05,2]
[352531779,1739154631933,-513.79262347,8.835e-05,2]
[352531780,1739154631942,-342.323,8.836e-05,2]
[352531781,1739154631951,-250.0,8.874e-05,2]
[352531782,1739154631960,-1000.0,8.879e-05,2]
[352531783,1739154631969,-153.2,8.885e-05,2]
[352531784,1739154631978,-409.36,8.891e-05,2]
[352531785,1739154631987,-153.2,8.896e-05,2]
[352531786,1739154631996,-153.2,8.907e-05,2]
[352531787,1739154632006,-153.2,8.918e-05,2]
[352531788,1739154632016,-153.2,8.929e-05,2]
[352531789,1739154632025,-601.29,8.961e-05,2]
[352531790,1739154632034,-5000.0,8.973e-05,2]
[352531791,1739154632047,-174.13,9.032e-05,2]
[352531792,1739154632057,-150.0,9.173e-05,2]
[352531793,1739154632066,-41.90007325,9.173e-05,2]
[352531794,1739154632087,-110.4996263,9.173e-05,2]
[352531795,1739154632096,-150.0,9.173e-05,2]
[352531796,1739154632106,-375.43,9.413e-05,2]
[352531797,1739154632115,-985.06,9.413e-05,2]
[352531798,1739154632126,-150.0,9.413e-05,2]
[352531799,1739154632135,-250.0,9.787e-05,2]
[352531800,1739154632144,-13646.06688414,9.85e-05,2]
[352531801,1739154632156,-915.47591036,9.85e-05,2]
[352531802,1739154632167,-1080.0018625,9.85e-05,2]
[352531846,1739154637648,-342.45445897,9.85e-05,2]
[352531847,1739154637703,-442.77788711,9.85e-05,2]
[352531848,1739154638178,-2771.4584199,9.85e-05,2]
[352532000,1739154639768,-2433.7845384,9.85e-05,2]
[352532002,1739154639778,-2199.896,9.909e-05,2]
[352532004,1739154639787,-4824.0,9.973e-05,2]
[352532006,1739154639796,-1000.0,9.989e-05,2]
[352532008,1739154639805,-500.0,9.998e-05,2]
[352532010,1739154639814,-251.7127837,9.998e-05,2]
[352532012,1739154639824,-825.4552299,9.999e-05,2]
[352532014,1739154639839,-615.04543614,9.999e-05,2]
[352532017,1739154639850,-1410.93525759,9.999e-05,2]
[352532019,1739154639861,-701.21241396,9.999e-05,2]
[352532027,1739154639931,-313.22483467,9.999e-05,2]
[352532039,1739154640038,-689.08030456,9.999e-05,2]
[352532040,1739154640095,-919.99639479,9.999e-05,2]
[352533948,1739154678467,163.18,7.415e-05,2]
[352533992,1739155831924,-452.08295896,8.219e-05,2]
[352533994,1739155831936,-295.63804909,8.219e-05,2]
[352534001,1739155832082,-293.76899195,8.219e-05,2]
[352534002,1739155832093,-271.78375195,8.836e-05,2]
[352534003,1739155832105,-52.47894805,8.836e-05,2]
[352534004,1739155832114,-1023.2106,8.836e-05,2]
[352534005,1739155832123,-1661.64537656,8.851e-05,2]
[352534006,1739155832134,-243.49782344,8.851e-05,2]
[352534007,1739155832143,-647.1794,8.973e-05,2]
[352534008,1739155832152,-150.0,9e-05,2]
[352534009,1739155832161,-150.0,9e-05,2]
[352534010,1739155832170,-150.0,9e-05,2]
[352534011,1739155832179,-246.67861353,9e-05,2]
[352534012,1739155832193,-1998.10131452,9e-05,2]
[352534013,1739155832204,-1933.82557355,9e-05,2]
[352534014,1739155832215,-2878.17513927,9e-05,2]
[352534015,1739155832224,-123.87135087,9.172e-05,2]
[352534016,1739155832292,-116.21864913,9.172e-05,2]
[352534017,1739155832302,-146.83326766,9.185e-05,2]
[352534130,1739155837859,-153.80673234,9.185e-05,2]
[352534131,1739155837868,-283.90270101,9.234e-05,2]
[352534132,1739155838070,-716.09729899,9.234e-05,2]
[352534133,1739155838084,-3262.58,9.285e-05,2]
[352534134,1739155838093,-150.0,9.29e-05,2]
[352534135,1739155838103,-150.0,9.333e-05,2]
[352534136,1739155838112,-438.77,9.478e-05,2]
[352534137,1739155838123,-183.65,9.578e-05,2]
[352534138,1739155838133,-438.77,9.578e-05,2]
[352534139,1739155838142,-52.41841339,9.578e-05,2]
[352534140,1739155838175,-376.0213201,9.578e-05,2]
[352534141,1739155838186,-14.10026651,9.578e-05,2]
[352534142,1739155838195,-282.78716146,9.578e-05,2]
[352534143,1739155838229,-155.98283854,9.578e-05,2]
[352534144,1739155838239,-150.0,9.667e-05,2]
[352534145,1739155838248,-3085.48530374,9.997e-05,2]
[352534146,1739155838260,-20614.22317209,9.997e-05,2]
[352534147,1739155838283,-476.81295156,9.997e-05,2]
[352534348,1739155840116,-658.46444811,9.997e-05,2]
[352534350,1739155840128,-1490.20435064,9.997e-05,2]
[352534352,1739155840139,-427.51236881,9.997e-05,2]
[352534354,1739155840150,-563.9908214,9.997e-05,2]
[352534966,1739155846026,-551.197797,9.997e-05,2]
[352534989,1739155846237,-4773.14107562,9.997e-05,2]
[352534992,1739155846248,-3799.30795281,9.997e-05,2]
[352536217,1739155874899,318.56,8e-05,2]
[352536218,1739156243878,151783.09504046,0.0002,120]
[352536230,1739156951686,156.61,7.192e-05,2]
[352536231,1739157002056,200.0,6.154e-05,2]
[352536239,1739157032092,-543.27282,8.248e-05,2]
[352536240,1739157032102,-266.5894,8.699e-05,2]
[352536241,1739157032112,-562.46852762,8.699e-05,2]
[352536242,1739157032248,-517.54927238,8.699e-05,2]
[352536243,1739157032258,-273.4528395,8.836e-05,2]
[352536244,1739157032302,-5900.0,8.836e-05,2]
[352536245,1739157032358,-541.345,8.836e-05,2]
[352536246,1739157032370,-4708.4627605,8.836e-05,2]
[352536247,1739157032380,-182.27891133,8.836e-05,2]
[352536248,1739157032390,-519.3438,8.973e-05,2]
[352536249,1739157032399,-543.27282,8.997e-05,2]
[352536250,1739157032409,-250.34684295,9e-05,2]
[352536251,1739157032419,-150.0,9e-05,2]
[352536252,1739157032428,-327.48,9.109e-05,2]
[352536253,1739157032438,-150.32,9.15e-05,2]
[352536254,1739157032447,-1000.0,9.168e-05,2]
[352536255,1739157032457,-165.83,9.271e-05,2]
[352536256,1739157032466,-170.82,9.371e-05,2]
[352536257,1739157032475,-286.77333854,9.5e-05,2]
[352536258,1739157032487,-1108.99788812,9.5e-05,2]
[352536259,1739157032498,-1239.9366522,9.5e-05,2]
[352536260,1739157032522,-1476.72672215,9.5e-05,2]
[352536261,1739157032531,-3921.15,9.759e-05,2]
[352536262,1739157032541,-244.493,9.759e-05,2]
[352536263,1739157032550,-1010.627,9.759e-05,2]
[352536264,1739157032560,-3045.619,9.9e-05,2]
[352536265,1739157032569,-177.206,9.9e-05,2]
[352536267,1739157032579,-16327.10223929,9.997e-05,2]
[352536269,1739157032589,-10846.11165181,9.997e-05,2]
[352536273,1739157032611,-795.57,9.997e-05,2]
[352536756,1739157038007,-1814.03961151,9.997e-05,2]
[352536758,1739157038019,-504.54262208,9.997e-05,2]
[352536760,1739157038030,-6409.82392561,9.997e-05,2]
[352536775,1739157038164,-119294.17411836,9.997e-05,2]
[352536777,1739157038174,-547.038322,9.997e-05,2]
[352536779,1739157038183,-500.0,9.997e-05,2]
[352536781,1739157038193,-500.0,9.997e-05,2]
[352536783,1739157038203,-690.004198,9.997e-05,2]
[352536785,1739157038212,-500.0,9.997e-05,2]
[352536787,1739157038221,-500.0,9.997e-05,2]
[352536789,1739157038231,-500.0,9.997e-05,2]
[352536791,1739157038240,-500.0,9.997e-05,2]
[352536793,1739157038250,-500.0,9.997e-05,2]
[352536795,1739157038259,-500.0,9.997e-05,2]
[352536797,1739157038269,-500.0,9.997e-05,2]
[352536799,1739157038278,-500.0,9.997e-05,2]
[352536801,1739157038288,-500.25595483,9.997e-05,2]
[352536803,1739157038299,-525.09047372,9.997e-05,2]
[352536805,1739157038308,-521.08756772,9.997e-05,2]
[352536807,1739157038319,-500.0,9.997e-05,2]
[352536809,1739157038328,-500.0,9.997e-05,2]
[352536811,1739157038338,-500.0,9.997e-05,2]
[352536813,1739157038347,-505.74739274,9.997e-05,2]
[352536815,1739157038356,-500.0,9.997e-05,2]
[352536817,1739157038366,-500.0,9.997e-05,2]
[352536819,1739157038375,-500.0,9.997e-05,2]
[352536821,1739157038384,-500.0,9.997e-05,2]
[352536823,1739157038394,-500.0,9.997e-05,2]
[352536825,1739157038404,-500.0,9.997e-05,2]
[352536827,1739157038414,-500.0,9.997e-05,2]
[352536829,1739157038423,-500.0,9.997e-05,2]
[352536831,1739157038435,-500.0,9.997e-05,2]
[352536833,1739157038444,-500.0,9.997e-05,2]
[352536835,1739157038453,-500.0,9.997e-05,2]
[352536837,1739157038463,-500.0,9.997e-05,2]
[352536839,1739157038472,-500.0,9.997e-05,2]
[352536841,1739157038482,-500.0,9.997e-05,2]
[352536843,1739157038491,-500.0,9.997e-05,2]
[352536845,1739157038501,-500.0,9.997e-05,2]
[352536847,1739157038510,-500.0,9.997e-05,2]
[352536849,1739157038520,-180.96051731,9.997e-05,2]
[352536851,1739157038529,-500.0,9.997e-05,2]
[352536853,1739157038538,-500.0,9.997e-05,2]
[352536856,1739157038548,-500.0,9.997e-05,2]
[352536859,1739157038557,-500.0,9.997e-05,2]
[352536861,1739157038566,-500.0,9.997e-05,2]
[352536864,1739157038576,-500.0,9.997e-05,2]
[352536868,1739157038585,-500.0,9.997e-05,2]
[352536870,1739157038594,-508.40417231,9.997e-05,2]
[352536872,1739157038604,-500.0,9.997e-05,2]
[352536874,1739157038613,-500.0,9.997e-05,2]
[352536876,1739157038622,-506.55779677,9.997e-05,2]
[352536878,1739157038631,-519.68883693,9.997e-05,2]
[352536880,1739157038641,-500.0,9.997e-05,2]
[352536882,1739157038650,-500.0,9.997e-05,2]
[352536884,1739157038659,-525.39774957,9.997e-05,2]
[352536886,1739157038668,-500.0,9.997e-05,2]
[352536888,1739157038677,-500.0,9.997e-05,2]
[352536890,1739157038687,-500.0,9.997e-05,2]
[352536892,1739157038695,-500.0,9.997e-05,2]
[352536894,1739157038704,-500.0,9.997e-05,2]
[352536918,1739157038927,-500.0,9.997e-05,2]
[352536920,1739157038938,-1864.91,9.997e-05,2]
[352536922,1739157038948,-500.0,9.997e-05,2]
[352536924,1739157038958,-500.0,9.997e-05,2]
[352536926,1739157038967,-526.89560708,9.997e-05,2]
[352536928,1739157038977,-380.0,9.997e-05,2]
[352536930,1739157038986,-500.0,9.997e-05,2]
[352536932,1739157038994,-469.37384742,9.997e-05,2]
[352536934,1739157039003,-500.0,9.997e-05,2]
[352536935,1739157039012,-500.0,9.997e-05,2]
[352536937,1739157039022,-500.0,9.997e-05,2]
[352536939,1739157039031,-535.46329972,9.997e-05,2]
[352536941,1739157039040,-500.0,9.997e-05,2]
[352536943,1739157039049,-500.0,9.997e-05,2]
[352536945,1739157039058,-500.0,9.997e-05,2]
[352536947,1739157039070,-202.72219003,9.997e-05,2]
[352536949,1739157039079,-500.0,9.997e-05,2]
[352536952,1739157039089,-503.3320344,9.997e-05,2]
[352536953,1739157039099,-500.0,9.997e-05,2]
[352536955,1739157039108,-505.53267705,9.997e-05,2]
[352536957,1739157039118,-512.12748253,9.997e-05,2]
[352536959,1739157039127,-500.0,9.997e-05,2]
[352536961,1739157039137,-500.0,9.997e-05,2]
[352536963,1739157039147,-541.11506382,9.997e-05,2]
[352536965,1739157039157,-500.0,9.997e-05,2]
[352536967,1739157039166,-500.0,9.997e-05,2]
[352536969,1739157039175,-503.60597586,9.997e-05,2]
[352536971,1739157039184,-500.0,9.997e-05,2]
[352536973,1739157039193,-500.0,9.997e-05,2]
[352536975,1739157039203,-500.0,9.997e-05,2]
[352536977,1739157039213,-438.33964601,9.998e-05,2]
[352536980,1739157039223,-362.68255588,9.998e-05,2]
[352536982,1739157039232,-500.0,9.998e-05,2]
[352536984,1739157039243,-500.0,9.998e-05,2]
[352536985,1739157039252,-500.0,9.998e-05,2]
[352536988,1739157039262,-500.93867766,9.998e-05,2]
[352536989,1739157039271,-506.57176297,9.998e-05,2]
[352536992,1739157039280,-501.47122278,9.998e-05,2]
[352536993,1739157039290,-500.0,9.998e-05,2]
[352536995,1739157039299,-519.04198674,9.998e-05,2]
[352536997,1739157039309,-500.0,9.998e-05,2]
[352537000,1739157039321,-500.0,9.998e-05,2]
[352537002,1739157039331,-505.70910671,9.998e-05,2]
[352537004,1739157039341,-500.0,9.998e-05,2]
[352537006,1739157039350,-293.126468,9.998e-05,2]
[352537008,1739157039360,-503.02048635,9.998e-05,2]
[352537010,1739157039368,-500.18279387,9.998e-05,2]
[352537012,1739157039378,-500.0,9.998e-05,2]
[352537014,1739157039388,-504.68620702,9.998e-05,2]
[352537016,1739157039398,-500.0,9.998e-05,2]
[352537018,1739157039408,-500.28447159,9.998e-05,2]
[352537019,1739157039417,-500.0,9.998e-05,2]
[352537021,1739157039427,-502.60723373,9.998e-05,2]
[352537023,1739157039436,-500.0,9.998e-05,2]
[352537025,1739157039446,-509.40095942,9.998e-05,2]
[352537028,1739157039458,-467.55259193,9.998e-05,2]
[352537030,1739157039468,-500.0,9.998e-05,2]
[352537032,1739157039477,-507.08259585,9.998e-05,2]
[352537034,1739157039487,-500.0,9.998e-05,2]
[352537036,1739157039496,-533.19689849,9.998e-05,2]
[352537038,1739157039505,-500.0,9.998e-05,2]
[352537040,1739157039514,-500.0,9.998e-05,2]
[352537042,1739157039524,-501.52107919,9.998e-05,2]
[352537044,1739157039533,-500.0,9.998e-05,2]
[352537046,1739157039542,-507.58252195,9.998e-05,2]
[352537048,1739157039551,-504.76091153,9.998e-05,2]
[352537050,1739157039560,-508.03380309,9.998e-05,2]
[352537052,1739157039571,-503.25671278,9.998e-05,2]
[352537054,1739157039581,-500.0,9.998e-05,2]
[352537056,1739157039590,-351.97485427,9.998e-05,2]
[352537058,1739157039599,-500.0,9.998e-05,2]
[352537060,1739157039609,-210.5014091,9.998e-05,2]
[352537062,1739157039617,-500.0,9.998e-05,2]
[352537064,1739157039627,-504.24398574,9.998e-05,2]
[352537066,1739157039637,-504.79470602,9.998e-05,2]
[352537068,1739157039647,-500.0,9.998e-05,2]
[352537070,1739157039656,-500.0,9.998e-05,2]
[352537072,1739157039666,-500.0,9.998e-05,2]
[352537074,1739157039676,-500.0,9.998e-05,2]
[352537076,1739157039686,-500.0,9.998e-05,2]
[352537078,1739157039695,-500.0,9.998e-05,2]
[352537080,1739157039705,-500.0,9.998e-05,2]
[352537082,1739157039714,-500.0,9.998e-05,2]
[352537084,1739157039724,-475.76955501,9.998e-05,2]
[352537086,1739157039734,-500.0,9.998e-05,2]
[352537088,1739157039743,-507.15402754,9.998e-05,2]
[352537090,1739157039753,-500.0,9.998e-05,2]
[352537092,1739157039762,-556.20864813,9.998e-05,2]
[352537094,1739157039775,-91.4763415,9.998e-05,2]
[352537097,1739157039785,-502.17437635,9.998e-05,2]
[352537099,1739157039795,-513.75227262,9.998e-05,2]
[352537101,1739157039809,-500.0,9.998e-05,2]
[352537102,1739157039821,-500.0,9.998e-05,2]
[352537103,1739157039831,-502.62653305,9.998e-05,2]
[352537105,1739157039840,-505.1862101,9.998e-05,2]
[352537107,1739157039851,-307.86433638,9.998e-05,2]
[352537109,1739157039863,-192.13566362,9.998e-05,2]
[352537111,1739157039873,-500.0,9.998e-05,2]
[352537112,1739157039883,-500.0,9.998e-05,2]
[352537113,1739157039895,-503.43608755,9.998e-05,2]
[352537115,1739157039905,-164.47177009,9.998e-05,2]
[352537117,1739157039918,-343.52556392,9.998e-05,2]
[352537119,1739157039928,-500.0,9.998e-05,2]
[352537121,1739157039938,-504.02868095,9.998e-05,2]
[352537123,1739157039947,-508.73784635,9.998e-05,2]
[352537125,1739157039957,-500.0,9.998e-05,2]
[352537127,1739157039967,-496.79167857,9.998e-05,2]
[352537129,1739157039978,-8.15794553,9.998e-05,2]
[352537133,1739157040000,-500.0,9.997e-05,2]
[352537135,1739157040010,-491.84205447,9.998e-05,2]
[352537137,1739157040019,-500.0,9.998e-05,2]
[352537139,1739157040029,-204.11794553,9.998e-05,2]
[352537142,1739157040045,-295.88205447,9.998e-05,2]
[352537144,1739157040054,-334.80863124,9.998e-05,2]
[352537146,1739157040070,-165.19136876,9.998e-05,2]
[352537148,1739157040079,-503.68773975,9.998e-05,2]
[352537150,1739157040089,-505.598338,9.998e-05,2]
[352537152,1739157040099,-269.92,9.998e-05,2]
[352537154,1739157040109,-506.06007053,9.998e-05,2]
[352537156,1739157040118,-505.35724034,9.998e-05,2]
[352537158,1739157040127,-508.70535778,9.998e-05,2]
[352537160,1739157040137,-506.80195237,9.998e-05,2]
[352537162,1739157040147,-502.67165583,9.998e-05,2]
[352537164,1739157040156,-113.14524776,9.998e-05,2]
[352537178,1739157040284,-500.0,9.997e-05,2]
[352537180,1739157040294,-386.85475224,9.998e-05,2]
[352537182,1739157040303,-500.0,9.998e-05,2]
[352537184,1739157040314,-503.41445207,9.998e-05,2]
[352537186,1739157040323,-500.0,9.998e-05,2]
[352537189,1739157040333,-500.0,9.998e-05,2]
[352537191,1739157040343,-500.0,9.998e-05,2]
[352537193,1739157040353,-259.40824137,9.998e-05,2]
[352537195,1739157040366,-240.59175863,9.998e-05,2]
[352537197,1739157040375,-113.39524133,9.998e-05,2]
[352537713,1739157046173,-500.0,9.997e-05,2]
[352537715,1739157046182,-386.60475867,9.998e-05,2]
[352537717,1739157046192,-51.76298593,9.998e-05,2]
[352537727,1739157046284,-448.23701407,9.998e-05,2]
[352537729,1739157046294,-500.0,9.998e-05,2]
[352537732,1739157046304,-500.0,9.998e-05,2]
[352537734,1739157046314,-500.0,9.998e-05,2]
[352537736,1739157046324,-500.0,9.998e-05,2]
[352537738,1739157046334,-500.0,9.998e-05,2]
[352537740,1739157046344,-500.0,9.998e-05,2]
[352537742,1739157046354,-500.0,9.998e-05,2]
[352537744,1739157046364,-503.15165112,9.998e-05,2]
[352537746,1739157046373,-500.0,9.998e-05,2]
[352537747,1739157046383,-500.0,9.998e-05,2]
[352537749,1739157046393,-500.0,9.998e-05,2]
[352537752,1739157046407,-500.0,9.998e-05,2]
[352537754,1739157046416,-500.0,9.998e-05,2]
[352537756,1739157046425,-500.0,9.998e-05,2]
[352537758,1739157046434,-500.0,9.998e-05,2]
[352537760,1739157046444,-500.0,9.998e-05,2]
[352537762,1739157046453,-346.57856281,9.998e-05,2]
[352537764,1739157046462,-500.0,9.998e-05,2]
[352537766,1739157046471,-500.0,9.998e-05,2]
[352537768,1739157046481,-510.75426068,9.998e-05,2]
[352537770,1739157046490,-500.0,9.998e-05,2]
[352537772,1739157046500,-407.85890357,9.998e-05,2]
[352537774,1739157046509,-502.47176,9.998e-05,2]
[352537776,1739157046519,-512.34823081,9.998e-05,2]
[352537778,1739157046528,-504.42938158,9.998e-05,2]
[352537780,1739157046538,-500.0,9.998e-05,2]
[352537782,1739157046548,-500.0,9.998e-05,2]
[352537784,1739157046557,-500.0,9.998e-05,2]
[352537786,1739157046567,-500.0,9.998e-05,2]
[352537788,1739157046578,-500.0,9.998e-05,2]
[352537790,1739157046587,-500.0,9.998e-05,2]
[352537792,1739157046596,-500.0,9.998e-05,2]
[352537794,1739157046607,-500.0,9.998e-05,2]
[352537796,1739157046617,-500.0,9.998e-05,2]
[352537798,1739157046627,-500.0,9.998e-05,2]
[352537800,1739157046637,-505.33230091,9.998e-05,2]
[352537802,1739157046647,-500.0,9.998e-05,2]
[352537804,1739157046657,-500.0,9.998e-05,2]
[352537806,1739157046666,-508.72300345,9.998e-05,2]
[352537807,1739157046676,-500.0,9.998e-05,2]
[352537809,1739157046686,-511.78294505,9.998e-05,2]
[352537812,1739157046699,-507.79310394,9.998e-05,2]
[352537814,1739157046708,-510.99204535,9.998e-05,2]
[352537816,1739157046718,-398.25238867,9.998e-05,2]
[352537818,1739157046728,-631.39012463,9.998e-05,2]
[352537820,1739157046738,-635.17310342,9.998e-05,2]
[352537822,1739157046748,-184.06405795,9.998e-05,2]
[352537824,1739157046759,-506.60577516,9.998e-05,2]
[352537826,1739157046769,-504.22296796,9.998e-05,2]
[352537828,1739157046778,-500.0,9.998e-05,2]
[352537830,1739157046787,-500.0,9.998e-05,2]
[352537831,1739157046796,-501.13910945,9.998e-05,2]
[352537834,1739157046807,-510.12020323,9.998e-05,2]
[352537836,1739157046823,-513.83621612,9.998e-05,2]